{"text_format":"3","workbook":"xlsx","n_sheets":1,"sheets":["Osobisty budżet miesięczny"],"read":"whole","date_system":"1900"}

{"sheet":"Osobisty budżet miesięczny","index":0,"n_rows":63,"n_cols":10,"rows_kept":63,"merged":[[1,1,1,9],[2,1,2,3],[3,1,5,1],[3,2,3,3],[3,6,4,8],[3,9,4,9],[4,2,4,3],[5,2,5,3],[5,6,6,8],[5,9,6,9],[6,1,8,1],[6,2,6,3],[7,2,7,3],[7,6,8,8],[7,9,8,9],[8,2,8,3],[21,6,21,9],[22,1,22,4],[30,6,30,9],[32,1,32,4],[37,6,37,9],[39,1,39,4],[43,6,43,9],[45,1,45,4],[49,6,49,9],[53,1,53,4],[56,6,56,9],[57,6,58,8],[57,9,58,9],[59,6,60,8],[59,9,60,9],[61,6,62,8],[61,9,62,9]]}
[]
[null,"Osobisty budżet miesięczny"]
[]
[null,"PLANOWANY PRZYCHÓD MIESIĘCZNY","Przychód 1",null,{"v":2500,"d":"2,500 zł"},null,"SALDO PLANOWANE (planowany przychód minus wydatki)",null,null,{"$f":"E6-J58","v":null}]
[null,null,"Przychód dodatkowy",null,{"v":500,"d":"500 zł"}]
[null,null,"Całkowity przychód miesięczny",null,{"$f":"SUM(E4:E5)","v":null},null,"SALDO RZECZYWISTE (rzeczywisty przychód minus wydatki)",null,null,{"$f":"E9-J60","v":null}]
[null,"RZECZYWISTY PRZYCHÓD MIESIĘCZNY","Przychód 1",null,{"v":2500,"d":"2,500 zł"}]
[null,null,"Przychód dodatkowy",null,{"v":500,"d":"500 zł"},null,"RÓŻNICA (wartość rzeczywista minus wartość planowana)",null,null,{"$f":"J6-J4","v":null}]
[null,null,"Całkowity przychód miesięczny",null,{"$f":"SUM(E7:E8)","v":null}]
[]
[null,"MIESZKANIE","Koszt planowany","Koszt rzeczywisty","Różnica",null,"ROZRYWKA","Koszt planowany","Koszt rzeczywisty","Różnica"]
[null,"Spłata kredytu lub czynsz",{"v":1500,"d":"1,500 zł"},{"v":1400,"d":"1,400 zł"},{"$f":"[Koszt planowany]-[Koszt rzeczywisty]","v":null},null,"Filmy wideo/DVD",{"v":0,"d":"0 zł"},{"v":50,"d":"50 zł"},{"$f":"[Koszt planowany]-[Koszt rzeczywisty]","v":null}]
[null,"Telefon",{"v":60,"d":"60 zł"},{"v":100,"d":"100 zł"},{"$f":"[Koszt planowany]-[Koszt rzeczywisty]","v":null},null,"Płyty CD",null,null,{"$f":"[Koszt planowany]-[Koszt rzeczywisty]","v":null}]
[null,"Prąd",{"v":50,"d":"50 zł"},{"v":60,"d":"60 zł"},{"$f":"[Koszt planowany]-[Koszt rzeczywisty]","v":null},null,"Kino",null,null,{"$f":"[Koszt planowany]-[Koszt rzeczywisty]","v":null}]
[null,"Gaz",{"v":200,"d":"200 zł"},{"v":180,"d":"180 zł"},{"$f":"[Koszt planowany]-[Koszt rzeczywisty]","v":null},null,"Koncerty",null,null,{"$f":"[Koszt planowany]-[Koszt rzeczywisty]","v":null}]
[null,"Woda i ścieki",null,null,{"$f":"[Koszt planowany]-[Koszt rzeczywisty]","v":null},null,"Imprezy sportowe",null,null,{"$f":"[Koszt planowany]-[Koszt rzeczywisty]","v":null}]
[null,"Telewizja kablowa",null,null,{"$f":"[Koszt planowany]-[Koszt rzeczywisty]","v":null},null,"Teatr",null,null,{"$f":"[Koszt planowany]-[Koszt rzeczywisty]","v":null}]
[null,"Wywóz śmieci",null,null,{"$f":"[Koszt planowany]-[Koszt rzeczywisty]","v":null},null,"Inne",null,null,{"$f":"[Koszt planowany]-[Koszt rzeczywisty]","v":null}]
[null,"Konserwacja lub naprawy",null,null,{"$f":"[Koszt planowany]-[Koszt rzeczywisty]","v":null},null,"Inne",null,null,{"$f":"[Koszt planowany]-[Koszt rzeczywisty]","v":null}]
[null,"Materiały",null,null,{"$f":"[Koszt planowany]-[Koszt rzeczywisty]","v":null},null,"Inne",null,null,{"$f":"[Koszt planowany]-[Koszt rzeczywisty]","v":null}]
[null,"Inne",null,null,{"$f":"[Koszt planowany]-[Koszt rzeczywisty]","v":null},null,"Razem",{"$f":"SUBTOTAL(109,[Koszt planowany])","v":null},{"$f":"SUBTOTAL(109,[Koszt rzeczywisty])","v":null},{"$f":"SUBTOTAL(109,[Różnica])","v":null}]
[null,"Razem",{"$f":"SUBTOTAL(109,[Koszt planowany])","v":null},{"$f":"SUBTOTAL(109,[Koszt rzeczywisty])","v":null},{"$f":"SUBTOTAL(109,[Różnica])","v":null}]
[{"$nulls":6},"POŻYCZKI","Koszt planowany","Koszt rzeczywisty","Różnica"]
[null,"TRANSPORT","Koszt planowany","Koszt rzeczywisty","Różnica",null,"Osobiste",null,null,{"$f":"[Koszt planowany]-[Koszt rzeczywisty]","v":null}]
[null,"Opłaty za samochód",{"v":250,"d":"250 zł"},{"v":250,"d":"250 zł"},{"$f":"[Koszt planowany]-[Koszt rzeczywisty]","v":null},null,"Studenckie",null,null,{"$f":"[Koszt planowany]-[Koszt rzeczywisty]","v":null}]
[null,"Opłaty za taksówkę/autobus",null,null,{"$f":"[Koszt planowany]-[Koszt rzeczywisty]","v":null},null,"Karta kredytowa",null,null,{"$f":"[Koszt planowany]-[Koszt rzeczywisty]","v":null}]
[null,"Ubezpieczenie",null,null,{"$f":"[Koszt planowany]-[Koszt rzeczywisty]","v":null},null,"Karta kredytowa",null,null,{"$f":"[Koszt planowany]-[Koszt rzeczywisty]","v":null}]
[null,"Licencje",null,null,{"$f":"[Koszt planowany]-[Koszt rzeczywisty]","v":null},null,"Karta kredytowa",null,null,{"$f":"[Koszt planowany]-[Koszt rzeczywisty]","v":null}]
[null,"Paliwo",null,null,{"$f":"[Koszt planowany]-[Koszt rzeczywisty]","v":null},null,"Inne",null,null,{"$f":"[Koszt planowany]-[Koszt rzeczywisty]","v":null}]
[null,"Konserwacja",null,null,{"$f":"[Koszt planowany]-[Koszt rzeczywisty]","v":null},null,"Razem",{"$f":"SUBTOTAL(109,[Koszt planowany])","v":null},{"$f":"SUBTOTAL(109,[Koszt rzeczywisty])","v":null},{"$f":"SUBTOTAL(109,[Różnica])","v":null}]
[null,"Inne",null,null,{"$f":"[Koszt planowany]-[Koszt rzeczywisty]","v":null}]
[null,"Razem",{"$f":"SUBTOTAL(109,[Koszt planowany])","v":null},{"$f":"SUBTOTAL(109,[Koszt rzeczywisty])","v":null},{"$f":"SUBTOTAL(109,[Różnica])","v":null},null,"PODATKI","Koszt planowany","Koszt rzeczywisty","Różnica"]
[{"$nulls":6},"Podatek 1",null,null,{"$f":"[Koszt planowany]-[Koszt rzeczywisty]","v":null}]
[null,"UBEZPIECZENIE","Koszt planowany","Koszt rzeczywisty","Różnica",null,"Województwo",null,null,{"$f":"[Koszt planowany]-[Koszt rzeczywisty]","v":null}]
[null,"Dom",null,null,{"$f":"[Koszt planowany]-[Koszt rzeczywisty]","v":null},null,"Podatek 3",null,null,{"$f":"[Koszt planowany]-[Koszt rzeczywisty]","v":null}]
[null,"Zdrowie",null,null,{"$f":"[Koszt planowany]-[Koszt rzeczywisty]","v":null},null,"Inne",null,null,{"$f":"[Koszt planowany]-[Koszt rzeczywisty]","v":null}]
[null,"Życie",null,null,{"$f":"[Koszt planowany]-[Koszt rzeczywisty]","v":null},null,"Razem",{"$f":"SUBTOTAL(109,[Koszt planowany])","v":null},{"$f":"SUBTOTAL(109,[Koszt rzeczywisty])","v":null},{"$f":"SUBTOTAL(109,[Różnica])","v":null}]
[null,"Inne",null,null,{"$f":"[Koszt planowany]-[Koszt rzeczywisty]","v":null}]
[null,"Razem",{"$f":"SUBTOTAL(109,[Koszt planowany])","v":null},{"$f":"SUBTOTAL(109,[Koszt rzeczywisty])","v":null},{"$f":"SUBTOTAL(109,[Różnica])","v":null},null,"OSZCZĘDNOŚCI I INWESTYCJE","Koszt planowany","Koszt rzeczywisty","Różnica"]
[{"$nulls":6},"Fundusz emerytalny",null,null,{"$f":"[Koszt planowany]-[Koszt rzeczywisty]","v":null}]
[null,"WYŻYWIENIE","Koszt planowany","Koszt rzeczywisty","Różnica",null,"Fundusz inwestycyjny",null,null,{"$f":"[Koszt planowany]-[Koszt rzeczywisty]","v":null}]
[null,"Artykuły spożywcze",null,null,{"$f":"[Koszt planowany]-[Koszt rzeczywisty]","v":null},null,"Inne",null,null,{"$f":"[Koszt planowany]-[Koszt rzeczywisty]","v":null}]
[null,"Restauracje",null,null,{"$f":"[Koszt planowany]-[Koszt rzeczywisty]","v":null},null,"Razem",{"$f":"SUBTOTAL(109,[Koszt planowany])","v":null},{"$f":"SUBTOTAL(109,[Koszt rzeczywisty])","v":null},{"$f":"SUBTOTAL(109,[Różnica])","v":null}]
[null,"Inne",null,null,{"$f":"[Koszt planowany]-[Koszt rzeczywisty]","v":null}]
[null,"Razem",{"$f":"SUBTOTAL(109,[Koszt planowany])","v":null},{"$f":"SUBTOTAL(109,[Koszt rzeczywisty])","v":null},{"$f":"SUBTOTAL(109,[Różnica])","v":null},null,"PREZENTY I DATKI","Koszt planowany","Koszt rzeczywisty","Różnica"]
[{"$nulls":6},"Cele charytatywne 1",null,null,{"$f":"[Koszt planowany]-[Koszt rzeczywisty]","v":null}]
[null,"ZWIERZĘTA DOMOWE","Koszt planowany","Koszt rzeczywisty","Różnica",null,"Cele charytatywne 2",null,null,{"$f":"[Koszt planowany]-[Koszt rzeczywisty]","v":null}]
[null,"Jedzenie",null,null,{"$f":"[Koszt planowany]-[Koszt rzeczywisty]","v":null},null,"Cele charytatywne 3",null,null,{"$f":"[Koszt planowany]-[Koszt rzeczywisty]","v":null}]
[null,"Opieka medyczna",null,null,{"$f":"[Koszt planowany]-[Koszt rzeczywisty]","v":null},null,"Razem",{"$f":"SUBTOTAL(109,[Koszt planowany])","v":null},{"$f":"SUBTOTAL(109,[Koszt rzeczywisty])","v":null},{"$f":"SUBTOTAL(109,[Różnica])","v":null}]
[null,"Pielęgnacja",null,null,{"$f":"[Koszt planowany]-[Koszt rzeczywisty]","v":null}]
[null,"Zabawki",null,null,{"$f":"[Koszt planowany]-[Koszt rzeczywisty]","v":null},null,"PRAWNE","Koszt planowany","Koszt rzeczywisty","Różnica"]
[null,"Inne",null,null,{"$f":"[Koszt planowany]-[Koszt rzeczywisty]","v":null},null,"Prawnik",null,null,{"$f":"[Koszt planowany]-[Koszt rzeczywisty]","v":null}]
[null,"Razem",{"$f":"SUBTOTAL(109,[Koszt planowany])","v":null},{"$f":"SUBTOTAL(109,[Koszt rzeczywisty])","v":null},{"$f":"SUBTOTAL(109,[Różnica])","v":null},null,"Alimenty",null,null,{"$f":"[Koszt planowany]-[Koszt rzeczywisty]","v":null}]
[{"$nulls":6},"Opłaty sądowe i z tytułu zastawu",null,null,{"$f":"[Koszt planowany]-[Koszt rzeczywisty]","v":null}]
[null,"WYDATKI OSOBISTE","Koszt planowany","Koszt rzeczywisty","Różnica",null,"Inne",null,null,{"$f":"[Koszt planowany]-[Koszt rzeczywisty]","v":null}]
[null,"Opieka medyczna",null,null,{"$f":"[Koszt planowany]-[Koszt rzeczywisty]","v":null},null,"Razem",{"$f":"SUBTOTAL(109,[Koszt planowany])","v":null},{"$f":"SUBTOTAL(109,[Koszt rzeczywisty])","v":null},{"$f":"SUBTOTAL(109,[Różnica])","v":null}]
[null,"Włosy/paznokcie",null,null,{"$f":"[Koszt planowany]-[Koszt rzeczywisty]","v":null}]
[null,"Ubrania",null,null,{"$f":"[Koszt planowany]-[Koszt rzeczywisty]","v":null},null,"KOSZT PLANOWANY RAZEM",null,null,{"$f":"SUM(C22,C32,C39,C45,C53,C63,H21,H30,H37,H43,H49,H56)","v":null}]
[null,"Pralnia chemiczna",null,null,{"$f":"[Koszt planowany]-[Koszt rzeczywisty]","v":null}]
[null,"Klub sportowy",null,null,{"$f":"[Koszt planowany]-[Koszt rzeczywisty]","v":null},null,"KOSZT RZECZYWISTY RAZEM",null,null,{"$f":"SUM(D22,D32,D39,D45,D53,D63,I21,I30,I37,I43,I49,I56)","v":null}]
[null,"Opłaty na cele organizacji",null,null,{"$f":"[Koszt planowany]-[Koszt rzeczywisty]","v":null}]
[null,"Inne",null,null,{"$f":"[Koszt planowany]-[Koszt rzeczywisty]","v":null},null,"RÓŻNICA RAZEM",null,null,{"$f":"SUM(E22,E32,E39,E45,E53,E63,J21,J30,J37,J43,J49,J56)","v":null}]
[null,"Razem",{"$f":"SUBTOTAL(109,[Koszt planowany])","v":null},{"$f":"SUBTOTAL(109,[Koszt rzeczywisty])","v":null},{"$f":"SUBTOTAL(109,[Różnica])","v":null}]